bitfinex-derivatives/quotes_SOLF0:USTF0_20250307
["timestamp","ask_amount","ask_price","bid_price","bid_amount"]
[1741334361155,0.04881156,144.19,144.16,3.77834755]
[1741334361560,0.04881156,144.19,144.18,6.9349]
[1741334368569,0.04881156,144.19,144.16,3.77834755]
[1741334369263,6.98351156,144.19,144.16,3.77834755]
[1741334369464,0.04881156,144.19,144.16,3.77834755]
[1741334369871,6.935,144.18,144.16,1.92614755]
[1741334370170,0.04881156,144.19,144.16,1.92614755]
[1741334370563,6.98371156,144.19,144.16,1.92614755]
[1741334371870,0.04881156,144.19,144.16,1.92614755]
[1741334378069,0.04881156,144.19,144.16,0.04614755]
[1741334378275,6.9354,144.17,144.16,0.04614755]
[1741334378761,18.19384284,144.18,144.16,0.04614755]
[1741334378966,0.04881156,144.19,144.16,0.04614755]
[1741334382368,272.95384284,144.26,144.16,0.04614755]
[1741334382564,272.95384284,144.26,144.14,44.19384284]
[1741334382876,6.933,144.22,144.14,44.19384284]
[1741334383475,0.04448947,144.19,144.17,0.05297246]
[1741334385070,25.96,144.27,144.18,25.96]
[1741334385377,6.9317,144.25,144.19,1.8852]
[1741334385776,6.9315,144.26,144.19,1.8852]
[1741334386174,0.04561049,144.24,144.21,0.05277933]
[1741334388373,6.9298,144.29,144.22,25.92]
[1741334389376,0.04501666,144.27,144.24,0.0439493]
[1741334394086,6.97581666,144.27,144.24,0.0439493]
[1741334394487,0.04501666,144.27,144.24,0.0439493]
[1741334395488,212.19384284,144.33,144.24,0.0439493]
[1741334395684,6.9282,144.32,144.24,0.0439493]
[1741334395984,6.9282,144.32,144.24,18.19384284]
[1741334396186,6.9282,144.32,144.25,1.8442]
[1741334396383,18.19384284,144.35,144.26,25.86]
[1741334396687,0.04937952,144.3,144.27,0.0444761]
[1741334396880,25.86,144.36,144.27,0.0444761]
[1741334397086,18.19384284,144.37,144.26,45.91804284]
[1741334397286,6.9275,144.34,144.26,45.91804284]
[1741334397681,25.84,144.36,144.26,45.91804284]
[1741334398198,0.04498499,144.32,144.3,0.05015051]
[1741334399389,6.97348499,144.32,144.3,0.05015051]
[1741334399982,0.04498499,144.32,144.3,0.05015051]
[1741334400983,6.9286,144.31,144.3,0.05015051]
[1741334401492,0.04498499,144.32,144.3,0.05015051]
[1741334401693,6.9286,144.31,144.3,0.05015051]
[1741334401987,0.04498499,144.32,144.3,0.05015051]
[1741334403190,25.92498499,144.32,144.3,0.05015051]
[1741334403381,6.9286,144.31,144.3,0.05015051]
[1741334403785,25.92498499,144.32,144.3,0.05015051]
[1741334403984,0.04498499,144.32,144.3,0.05015051]
[1741334405693,26.1,144.31,144.3,0.05015051]
[1741334405880,265.22768219,144.44,144.3,0.05015051]
[1741334406090,1.27325289,144.43,144.3,0.05015051]
[1741334406288,26.16,144.42,144.23,3.8504]
[1741334407295,0.05046753,144.34,144.33,6.9277]
[1741334407693,228.7,144.44,144.29,26.2]
[1741334407895,0.05260287,144.35,144.32,0.046367]
[1741334408101,26.24,144.34,144.26,26.24]
[1741334408399,26.24,144.37,144.26,26.24]
[1741334408595,26.24,144.39,144.29,0.04512376]
[1741334408805,76.55741329,144.44,144.3,26.24]
[1741334408993,76.55741329,144.44,144.31,4.032]
[1741334409393,26.32,144.43,144.31,4.032]
[1741334409701,6.9238,144.42,144.36,6.9259]
[1741334409995,0.0476188,144.38,144.36,0.05322895]
[1741334410498,26.42,144.37,144.36,0.05322895]
[1741334410701,0.04857514,144.38,144.36,0.05322895]
[1741334410901,0.04857514,144.38,144.37,6.9258]
[1741334411701,0.04857514,144.38,144.36,0.05322895]
[1741334413208,26.58,144.37,144.31,1.995]
[1741334413699,0.04857514,144.38,144.32,1.888]
[1741334413994,6.97387514,144.38,144.32,1.888]
[1741334414195,0.04857514,144.38,144.32,1.888]
[1741334414395,0.04857514,144.38,144.34,0.04595681]
[1741334417201,6.9267,144.35,144.34,0.04595681]
[1741334418507,33.6067,144.35,144.34,0.04595681]
[1741334419205,26.68,144.35,144.34,0.04595681]
[1741334419597,0.04857514,144.38,144.34,0.04595681]
[1741334419798,6.9267,144.35,144.34,0.04595681]
[1741334420505,6.9285,144.32,144.28,1.977]
[1741334420707,26.64,144.36,144.28,8.9067]
[1741334420899,26.64,144.36,144.28,1.977]
[1741334421607,6.9289,144.31,144.28,1.977]
[1741334421805,0.04688585,144.33,144.31,0.05030804]
[1741334422003,0.04688585,144.33,144.28,1.977]
[1741334422212,6.9289,144.31,144.28,1.977]
[1741334422403,6.9289,144.31,144.29,0.04575168]
[1741334422802,6.9291,144.3,144.29,0.04575168]
[1741334423003,26.6,144.32,144.29,0.04575168]
[1741334424005,6.9291,144.3,144.29,0.04575168]
[1741334425012,6.9289,144.31,144.29,0.04575168]
[1741334425509,26.6,144.32,144.29,0.04575168]
[1741334425908,26.6,144.32,144.2,5.8307]
[1741334426415,6.9296,144.3,144.26,6.9307]
[1741334426709,90.40771329,144.39,144.23,26.54]
[1741334426909,26.54,144.38,144.23,26.54]
[1741334427214,0.05257116,144.32,144.3,0.05292442]
[1741334427413,33.4884,144.32,144.3,0.05292442]
[1741334427608,26.60505865,144.32,144.3,0.05292442]
[1741334428309,6.9286,144.31,144.3,0.05292442]
[1741334429816,6.93,144.29,144.25,6.9312]
[1741334430015,26.56,144.32,144.23,26.54]
[1741334430217,26.56,144.32,144.2,32.3307]
[1741334430519,26.56,144.32,144.24,6.9316]
[1741334430908,26.56,144.32,144.27,0.05102989]
[1741334431115,0.04831891,144.29,144.27,0.05102989]
[1741334431315,26.5,144.28,144.27,0.05102989]
[1741334431515,33.4301,144.28,144.27,0.05102989]
[1741334432013,26.5,144.28,144.27,0.05102989]
[1741334432216,0.04831891,144.29,144.27,6.98162989]
[1741334432611,0.04831891,144.29,144.27,0.05102989]
[1741334432816,0.04831891,144.29,144.27,6.98132989]
[1741334434215,0.04831891,144.29,144.27,0.05102989]
[1741334434418,6.9301,144.28,144.27,0.05102989]
[1741334434614,0.04831891,144.29,144.27,0.05102989]
[1741334436117,0.04831891,144.29,144.27,6.98152989]
[1741334436416,0.04831891,144.29,144.27,0.05102989]
[1741334436611,6.9301,144.28,144.27,0.05102989]
[1741334437122,6.97811891,144.29,144.27,0.05102989]
[1741334437321,0.04831891,144.29,144.27,0.05102989]
[1741334438022,0.04831891,144.29,144.28,6.9301]
[1741334450334,194.0,144.36,144.34,6.9269]
[1741334450527,76.87061329,144.41,144.28,30.4311]
[1741334450733,26.38,144.4,144.28,30.4311]
[1741334450921,26.38,144.4,144.33,6.9272]
[1741334451123,26.38,144.4,144.28,30.4311]
[1741334451532,0.04395839,144.35,144.33,0.04667986]
[1741334451734,26.38,144.36,144.33,0.04667986]
[1741334452034,0.05052216,144.35,144.33,0.04667986]
[1741334452335,0.05052216,144.35,144.34,6.9272]
[1741334452528,0.05052216,144.35,144.33,0.04667986]
[1741334452926,0.05052216,144.35,144.33,6.97427986]
[1741334453132,6.97732216,144.35,144.33,0.04667986]
[1741334453334,0.05052216,144.35,144.33,0.04667986]
[1741334453927,6.9272,144.34,144.33,0.04667986]
[1741334454131,0.05052216,144.35,144.33,0.04667986]
[1741334454636,6.97762216,144.35,144.33,0.04667986]
[1741334454827,0.05052216,144.35,144.33,0.04667986]
[1741334456134,0.05052216,144.35,144.34,6.9272]
[1741334458937,26.28,144.39,144.38,6.925]
[1741334459325,26.28,144.39,144.29,28.1426]
[1741334459534,26.28,144.39,144.3,1.9339]
[1741334460236,0.04512745,144.36,144.33,0.05308018]
[1741334460436,6.9271,144.35,144.33,0.05308018]
[1741334460636,33.2471,144.35,144.33,0.05308018]
[1741334461337,6.9272,144.34,144.33,0.05308018]
[1741334461930,6.9294,144.3,144.22,131.71226616]
[1741334462135,6.9294,144.3,144.23,4.022]
[1741334462329,26.3,144.31,144.23,4.022]
[1741334462839,6.9293,144.3,144.23,4.022]
[1741334463035,0.04926916,144.28,144.26,0.04802499]
[1741334463928,33.2906,144.27,144.26,0.04802499]
[1741334465342,6.933,144.22,144.2,1.957]
[1741334465547,26.36,144.27,144.2,1.957]
[1741334466034,6.9328,144.23,144.2,1.957]
[1741334466233,33.3128,144.23,144.2,1.957]
[1741334466643,33.35798221,144.23,144.2,2.00163983]
[1741334467038,0.04518221,144.23,144.2,2.00163983]
[1741334468643,0.04518221,144.23,144.2,0.04463983]
[1741334470647,26.32,144.22,144.2,0.04463983]
[1741334472138,6.9334,144.21,144.2,0.04463983]
[1741334472442,26.32,144.22,144.14,3.8232]
[1741334473551,0.04894977,144.19,144.17,0.0461935]
[1741334477351,26.34,144.23,144.17,0.0461935]
[1741334477743,6.9333,144.22,144.17,0.0461935]
[1741334478049,26.34,144.23,144.17,0.0461935]
[1741334478546,0.05089605,144.21,144.17,0.0461935]
[1741334480152,6.98449605,144.21,144.17,0.0461935]
[1741334481049,6.934,144.2,144.17,0.0461935]
[1741334481252,0.05089605,144.21,144.17,0.0461935]
[1741334485362,0.05089605,144.21,144.17,26.2861935]
[1741334487356,0.05089605,144.21,144.18,2.0227]
[1741334487656,26.24,144.25,144.18,2.0227]
[1741334487858,33.1514,144.26,144.18,2.0227]
[1741334488357,26.22,144.26,144.18,2.0227]
[1741334488761,0.05092029,144.23,144.21,0.05308123]
[1741334489365,26.22,144.22,144.21,0.05308123]
[1741334490465,33.153,144.22,144.21,0.05308123]
[1741334490768,26.22,144.22,144.14,5.7905]
[1741334490967,26.22,144.22,144.07,228.72]
[1741334491167,255.19,144.22,144.08,3.893]
[1741334491668,1.27518277,144.21,144.05,76.54741519]
[1741334491863,0.04521263,144.15,144.12,0.05332667]
[1741334492062,220.28,144.14,144.04,30.77185097]
[1741334492263,26.28,144.14,144.04,30.77185097]
[1741334492665,6.9386,144.11,144.04,30.77185097]
[1741334492862,6.9386,144.11,144.04,32.68995097]
[1741334493263,0.04571192,144.09,144.06,0.0465188]
[1741334493874,26.28,144.14,144.06,0.0465188]
[1741334494173,26.28,144.18,144.06,0.0465188]
[1741334494370,26.28,144.18,144.05,26.24]
[1741334495073,0.04961593,144.13,144.1,0.04689713]
[1741334495370,0.04961593,144.13,144.1,26.32689713]
[1741334499270,26.26,144.2,144.1,26.32689713]
[1741334499475,26.26,144.2,144.11,3.9876]
[1741334499772,26.26,144.2,144.18,6.9346]
[1741334500368,26.30424535,144.2,144.18,6.97936328]
[1741334500573,26.30424535,144.2,144.18,0.04476328]
[1741334501574,6.9344,144.19,144.18,0.04476328]
[1741334502078,26.30424535,144.2,144.13,6.9371]
[1741334502371,26.30424535,144.2,144.13,6.937]
[1741334502570,26.30424535,144.2,144.11,30.2476]
[1741334502771,26.26,144.2,144.11,30.2476]
[1741334503177,0.04609364,144.17,144.14,0.05118371]
[1741334503568,0.04609364,144.17,144.16,6.9359]
[1741334503776,0.04609364,144.17,144.14,0.05118371]
[1741334504175,0.04609364,144.17,144.16,6.9359]
[1741334508982,0.2463,144.27,144.19,6.9341]
[1741334509283,26.18,144.26,144.15,28.0545]
[1741334509581,6.9337,144.21,144.18,6.9347]
[1741334510077,6.97877542,144.21,144.18,6.98781344]
[1741334510278,0.04507542,144.21,144.18,0.05311344]
[1741334511078,0.04507542,144.21,144.2,6.9339]
[1741334514485,0.04507542,144.21,144.19,6.9343]
[1741334514882,0.04507542,144.21,144.18,0.05311344]
[1741334515584,6.97867542,144.21,144.19,6.9343]
[1741334516286,6.9344,144.19,144.18,0.05311344]
[1741334516986,0.04507542,144.21,144.18,0.05311344]
[1741334517784,0.04507542,144.21,144.19,6.9344]
[1741334517986,0.04507542,144.21,144.18,0.05311344]
[1741334518582,0.04507542,144.21,144.2,6.9339]
[1741334520181,0.04507542,144.21,144.18,26.17311344]
[1741334520388,0.04507542,144.21,144.2,6.9339]
[1741334522690,194.0,144.27,144.25,6.9312]
[1741334522882,26.08,144.29,144.2,1.9567]
[1741334523082,26.08,144.3,144.21,1.8492]
[1741334523377,26.08,144.3,144.19,1.9684]
[1741334523582,6.9323,144.24,144.19,1.9684]
[1741334523986,0.04814987,144.23,144.2,0.05177418]
[1741334524888,0.04814987,144.23,144.22,6.933]
[1741334525685,26.06,144.29,144.2,3.88527418]
[1741334525889,26.06,144.29,144.2,3.8335]
[1741334526087,6.9299,144.29,144.25,6.9311]
[1741334526389,26.04,144.31,144.23,26.04]
[1741334526792,0.04652423,144.28,144.26,6.97825283]
[1741334527191,0.04652423,144.28,144.26,0.04725283]
[1741334527394,6.97672423,144.28,144.26,0.04725283]
[1741334527694,0.04652423,144.28,144.26,0.04725283]
[1741334527991,6.9306,144.27,144.26,0.04725283]
[1741334528389,6.9306,144.27,144.26,0.02625283]
[1741334528689,6.9306,144.27,144.2,29.9135]
[1741334528690,26.1,144.27,144.2,29.9135]
[1741334528894,26.1,144.27,144.21,6.9334]
[1741334529194,26.1,144.27,144.2,29.9135]
[1741334529392,26.1,144.27,144.2,28.073]
[1741334529586,26.1,144.27,144.2,1.993]
[1741334529786,0.04521008,144.25,144.22,0.04411557]
[1741334530492,0.04521008,144.25,144.22,6.97671557]
[1741334530794,0.04521008,144.25,144.22,0.04411557]
[1741334531293,0.04521008,144.25,144.22,6.97671557]
[1741334531495,0.04521008,144.25,144.22,0.04411557]
[1741334531793,0.04521008,144.25,144.23,6.9322]
[1741334531988,0.04521008,144.25,144.22,0.04411557]
[1741334532489,0.04521008,144.25,144.24,6.932]
[1741334535592,26.36,144.31,144.28,6.9297]
[1741334535892,26.36,144.31,144.21,28.0403]
[1741334536792,26.36,144.31,144.25,0.05294666]
[1741334536996,26.38,144.34,144.26,26.38]
[1741334537289,6.9282,144.33,144.28,6.9298]
[1741334537794,26.44,144.35,144.28,6.9298]
[1741334537993,6.9283,144.32,144.28,6.9298]
[1741334538192,26.44,144.35,144.29,6.9294]
[1741334538496,6.97698834,144.33,144.3,0.04481801]
[1741334538790,0.04898834,144.33,144.3,0.04481801]
[1741334538990,27.66,144.39,144.31,27.66]
[1741334539187,83.48221329,144.4,144.35,6.9263]
[1741334539394,83.48221329,144.4,144.31,27.66]
[1741334539592,76.55741329,144.4,144.31,27.66]
[1741334540295,0.02768753,144.37,144.34,6.97821286]
[1741334540701,0.02768753,144.37,144.34,0.05131286]
[1741334541789,27.68768753,144.37,144.34,0.05131286]
[1741334541991,27.68768753,144.37,144.28,27.66]
[1741334542299,27.66,144.37,144.27,29.6431]
[1741334542698,6.9282,144.32,144.27,29.6431]
[1741334542899,194.0,144.36,144.27,29.6431]
[1741334543101,6.9291,144.31,144.21,3.9285]
[1741334543295,0.04457354,144.33,144.3,0.04505607]
[1741334543599,6.9283,144.32,144.26,6.931]
[1741334543798,6.9283,144.32,144.3,0.05224398]
[1741334543993,0.04721024,144.33,144.3,0.05224398]
[1741334544190,0.04721024,144.33,144.3,6.98104398]
[1741334544791,0.04721024,144.33,144.3,0.05224398]
[1741334544996,194.0,144.36,144.3,27.83224398]
[1741334545298,194.0,144.36,144.33,6.9274]
[1741334545805,194.0,144.36,144.31,18.13495235]
[1741334545998,194.0,144.36,144.32,6.9279]
[1741334546299,0.03179015,144.35,144.32,0.051716]
[1741334546498,0.03179015,144.35,144.33,6.9276]
[1741334547802,0.03179015,144.35,144.32,0.051716]
[1741334548204,6.9277,144.33,144.32,0.051716]
[1741334550798,0.03179015,144.35,144.32,0.051716]
[1741334552007,6.9277,144.33,144.32,0.051716]
[1741334555305,194.0,144.32,144.21,1.9677]
[1741334555506,6.9329,144.23,144.21,1.9677]
[1741334555707,27.86,144.26,144.19,3.955]
[1741334556607,0.04646183,144.24,144.21,0.04696526]
[1741334556904,6.933,144.22,144.21,0.04696526]
[1741334557204,63.87147596,144.22,144.15,129.44300472]
[1741334557506,6.9341,144.2,144.15,125.48800472]
[1741334558005,6.934,144.2,144.12,1.9895]
[1741334558201,56.93847596,144.22,144.12,1.9895]
[1741334558509,0.05212139,144.17,144.15,0.0504151]
[1741334558807,27.86,144.19,144.15,0.0504151]
[1741334559107,0.04564637,144.17,144.15,0.0504151]
[1741334562103,221.84,144.21,144.18,6.9346]
[1741334562308,221.84,144.21,144.12,56.87847596]
[1741334562603,194.0,144.21,144.12,56.87847596]
[1741334562805,190.9354,144.21,144.2,6.9339]
[1741334563008,27.86,144.27,144.18,27.86]
[1741334563203,0.04606492,144.19,144.18,27.86]
[1741334563407,27.86,144.27,144.18,27.86]
[1741334563810,27.86,144.27,144.21,6.9331]
[1741334564005,116.04290289,144.35,144.18,29.03847596]
[1741334564211,6.9277,144.33,144.19,27.86]
[1741334564408,0.03876012,144.27,144.25,0.04482658]
[1741334564609,56.97847596,144.31,144.23,27.94]
[1741334564810,0.03876012,144.27,144.25,0.04983868]
[1741334568210,27.91876012,144.27,144.25,0.04983868]
[1741334569917,6.931,144.26,144.25,0.04983868]
[1741334571018,6.9319,144.25,144.19,8.7832]
[1741334571219,29.03847596,144.25,144.19,8.7832]
[1741334571515,35.97017596,144.25,144.18,27.82]
[1741334571819,29.03847596,144.25,144.18,27.82]
[1741334572009,190.9354,144.26,144.2,0.05292249]
[1741334572317,0.04948165,144.23,144.2,0.05292249]
[1741334572520,0.04948165,144.23,144.22,6.9327]
[1741334576620,0.04948165,144.23,144.2,0.05292249]
[1741334577216,0.04948165,144.23,144.21,6.9334]
[1741334577414,0.04948165,144.23,144.2,0.05292249]
[1741334577917,0.04948165,144.23,144.22,6.933]
[1741334579316,0.04948165,144.23,144.2,0.05292249]
[1741334579717,6.98218165,144.23,144.2,0.05292249]
[1741334580119,0.04948165,144.23,144.2,0.05292249]
[1741334580423,6.9334,144.21,144.2,0.05292249]
[1741334580617,27.70948165,144.23,144.2,0.05292249]
[1741334582520,34.64238165,144.23,144.2,0.05292249]
[1741334582725,27.70948165,144.23,144.2,0.05292249]
[1741334583126,6.9333,144.22,144.2,0.05292249]
[1741334583315,27.70948165,144.23,144.2,0.05292249]
[1741334584830,6.9333,144.22,144.2,0.05292249]
[1741334585629,6.9334,144.21,144.2,0.05292249]
[1741334587228,6.9331,144.22,144.2,0.05292249]
[1741334587531,27.70948165,144.23,144.2,0.05292249]
[1741334588632,6.9334,144.22,144.2,0.05292249]
[1741334589034,27.70948165,144.23,144.2,0.05292249]
[1741334589434,0.04948165,144.23,144.2,0.05292249]
[1741334590038,0.04948165,144.23,144.21,6.9331]
[1741334590335,6.98198165,144.23,144.2,0.05292249]
[1741334590728,0.04948165,144.23,144.2,0.05292249]
[1741334591539,0.04948165,144.23,144.21,6.9334]
[1741334591735,0.04948165,144.23,144.2,0.05292249]
[1741334592034,6.98228165,144.23,144.2,6.98662249]
[1741334593243,0.04948165,144.23,144.21,6.9333]
[1741334594143,6.98198165,144.23,144.2,0.05292249]
[1741334594435,6.98198165,144.23,144.2,6.98682249]
[1741334594640,6.98198165,144.23,144.2,0.05292249]
[1741334595039,6.98198165,144.23,144.2,6.98662249]
[1741334595343,6.9334,144.21,144.2,0.05292249]
[1741334597044,25.10878914,144.21,144.2,0.05292249]
[1741334599248,6.9348,144.19,144.15,6.9362]
[1741334600152,6.9348,144.19,144.13,1.9609]
[1741334600347,0.04846043,144.18,144.16,0.04463866]
[1741334600840,0.04846043,144.18,144.17,6.9354]
[1741334601847,0.04846043,144.18,144.16,0.04463866]
[1741334602051,0.04846043,144.18,144.16,6.98023866]
[1741334602553,0.04846043,144.18,144.16,0.04463866]
[1741334604154,0.04846043,144.18,144.17,6.9354]
[1741334604556,0.04846043,144.18,144.16,0.04463866]
[1741334605450,0.04846043,144.18,144.17,6.9354]
[1741334605652,0.04846043,144.18,144.16,0.04463866]
[1741334607659,0.04846043,144.18,144.17,6.9354]
[1741334608863,190.9354,144.22,144.16,27.30463866]
[1741334609056,190.9354,144.22,144.21,6.9334]
[1741334609258,1.78,144.24,144.16,27.26]
[1741334609654,1.78,144.24,144.22,6.9329]
[1741334610058,1.8281863,144.24,144.22,6.98410137]
[1741334610656,1.8281863,144.24,144.23,6.9325]
[1741334610962,1.8281863,144.24,144.22,0.05120137]
[1741334612364,1.8281863,144.24,144.22,6.98390137]
[1741334613565,20.00357544,144.24,144.22,0.05120137]
[1741334615563,20.00357544,144.24,144.13,1.9609]
[1741334615564,20.00357544,144.24,144.14,27.12]
[1741334615766,18.17538914,144.2,144.14,27.12]
[1741334616465,25.10938914,144.2,144.17,6.9351]
[1741334616658,25.15888165,144.2,144.17,6.98717966]
[1741334616961,0.04949251,144.2,144.18,6.9349]
[1741334617865,0.04949251,144.2,144.17,6.98717966]
[1741334618362,6.9344,144.19,144.17,0.05207966]
[1741334618761,18.22488165,144.2,144.17,0.05207966]
[1741334619361,6.9344,144.19,144.17,0.05207966]
[1741334619565,18.22488165,144.2,144.17,0.05207966]
[1741334620068,6.9349,144.18,144.17,0.05207966]
[1741334620461,25.11028914,144.18,144.17,0.05207966]
[1741334621267,6.9349,144.18,144.17,0.05207966]
[1741334621466,18.22488165,144.2,144.17,6.98747966]
[1741334621769,18.22488165,144.2,144.17,0.05207966]
[1741334622667,0.04949251,144.2,144.18,6.9349]
[1741334622865,0.04949251,144.2,144.17,0.05207966]
[1741334623264,6.98349251,144.2,144.17,6.98717966]
[1741334623464,0.04949251,144.2,144.17,6.98717966]
[1741334623770,0.04949251,144.2,144.17,0.05207966]
[1741334623965,18.22488165,144.2,144.17,0.05207966]
[1741334625272,6.9344,144.19,144.17,0.05207966]
[1741334625474,18.22488165,144.2,144.17,0.05207966]
[1741334625667,6.9349,144.18,144.17,0.05207966]
[1741334626368,25.11028914,144.18,144.17,0.05207966]
[1741334630868,18.17538914,144.18,144.17,0.05207966]
[1741334631371,197.87,144.19,144.17,0.05207966]
[1741334631666,190.9354,144.19,144.17,0.05207966]
[1741334631873,6.9349,144.18,144.17,0.05207966]
[1741334632171,18.17538914,144.18,144.13,1.9609]
[1741334632372,6.9364,144.15,144.13,1.9609]
[1741334632575,18.17538914,144.16,144.13,1.9609]
[1741334632873,6.9378,144.12,144.08,6.9394]
[1741334633067,18.17538914,144.14,144.06,3.9024]
[1741334633274,18.17538914,144.12,144.06,3.9024]
[1741334633472,6.9389,144.1,144.09,0.0485499]
[1741334633665,25.11428914,144.1,144.09,0.0485499]
[1741334634370,216.04968914,144.1,144.09,4.99e-05]
[1741334634770,6.9408,144.06,144.04,28.86485097]
[1741334634968,25.11618914,144.06,144.04,28.86485097]
[1741334635675,18.17538914,144.06,144.04,28.86485097]
[1741334635866,18.22469343,144.06,144.04,28.91264038]
[1741334636270,18.22469343,144.06,144.04,0.04778941]
[1741334639177,0.04930429,144.06,144.04,0.04778941]
[1741334639771,0.04930429,144.06,144.05,6.9412]
[1741334640477,0.04930429,144.06,144.04,0.04778941]
[1741334640680,18.22469343,144.06,144.04,0.04778941]
[1741334641879,26.88,144.05,144.04,0.04778941]
[1741334642679,26.88,144.05,143.99,6.9437]
[1741334642879,18.17538914,144.02,143.99,6.9437]
[1741334643282,18.17538914,144.02,143.96,1.9411]
[1741334643880,26.88,144.05,143.98,0.04946445]
[1741334643881,0.04678377,144.0,143.98,0.04946445]
[1741334644081,8.85,144.02,144.01,6.9431]
[1741334644283,0.05049411,144.0,143.96,1.9411]
[1741334644475,8.85,144.02,143.99,0.05018995]
[1741334644676,8.85,144.02,143.99,6.99398995]
[1741334644877,8.89470823,144.02,143.99,6.99398995]
[1741334645575,8.89470823,144.02,144.0,6.9435]
[1741334647577,6.9436,144.0,143.99,0.05018995]
[1741334649278,6.9436,144.0,143.99,8.995e-05]
[1741334656885,6.9436,144.0,143.91,1.8584]
[1741334656886,6.9463,143.95,143.9,1.8992]
[1741334657190,18.17538914,143.94,143.9,1.8992]
[1741334657888,6.9472,143.93,143.9,1.8992]
[1741334658092,0.05329358,143.93,143.91,0.04788485]
[1741334658889,7.00049358,143.93,143.91,0.04788485]
[1741334660386,6.9474,143.92,143.91,0.04788485]
[1741334662489,0.05329358,143.93,143.91,0.04788485]
[1741334663484,6.9474,143.92,143.91,0.04788485]
[1741334666394,25.12278914,143.92,143.91,0.04788485]
[1741334666797,0.05329358,143.93,143.91,0.04788485]
[1741334668491,0.23,143.95,143.91,0.04788485]
[1741334668794,0.23,143.95,143.92,6.9472]
[1741334668995,0.23,143.95,143.92,8.8036]
[1741334669188,0.23,143.95,143.93,6.9469]
[1741334669389,0.23,143.95,143.92,3.8934]
[1741334669787,0.28223338,143.95,143.92,3.8934]
[1741334669995,0.28223338,143.95,143.93,6.9469]
[1741334672092,8.85,143.97,143.95,6.9458]
[1741334672597,8.85,143.97,143.94,6.9463]
[1741334672787,8.85,143.97,143.92,3.8934]
[1741334673294,0.0475052,143.96,143.93,0.04438214]
[1741334673800,6.9465,143.94,143.93,0.04438214]
[1741334674002,25.12188914,143.94,143.93,0.04438214]
[1741334677902,6.9465,143.94,143.93,0.04438214]
[1741334678197,6.9462,143.95,143.93,0.04438214]
[1741334678403,45.00289434,143.96,143.93,0.04438214]
[1741334678791,26.8275052,143.96,143.93,0.04438214]
[1741334678990,33.7730052,143.96,143.93,0.04438214]
[1741334679401,26.8275052,143.96,143.93,0.04438214]
[1741334679798,45.00289434,143.96,143.93,0.04438214]
[1741334679998,6.9465,143.94,143.93,0.04438214]
[1741334682306,25.12188914,143.94,143.93,0.04438214]
[1741334682505,18.63159661,143.94,143.93,0.04438214]
[1741334682703,6.9494,143.88,143.87,2.0126]
[1741334683100,11.68509661,143.89,143.85,1.9038]
[1741334683310,18.63539661,143.87,143.85,1.9038]
[1741334683512,18.63539661,143.87,143.83,8.8544]
[1741334683905,0.04674475,143.86,143.84,0.05146352]
[1741334684107,6.99704475,143.86,143.84,0.05146352]
[1741334684407,0.04674475,143.86,143.84,0.05146352]
[1741334684899,6.99734475,143.86,143.84,0.05146352]
[1741334685497,0.04674475,143.86,143.84,0.05146352]
[1741334686400,0.04674475,143.86,143.84,7.00246352]
[1741334686999,43.24736977,143.95,143.87,6.9494]
[1741334687200,18.2688884,143.9,143.83,28.6629]
[1741334687504,18.2688884,143.9,143.84,6.951]
[1741334687505,45.0288884,143.9,143.84,6.951]
[1741334687908,6.9493,143.89,143.84,6.951]
[1741334688107,0.04646108,143.88,143.86,0.04481646]
[1741334688612,6.99606108,143.88,143.86,0.04481646]
[1741334689298,6.9498,143.87,143.86,0.04481646]
[1741334689712,18.31534948,143.88,143.86,0.04481646]
[1741334690104,6.9498,143.87,143.86,0.04481646]
[1741334690305,22.24711828,143.87,143.86,0.04481646]
[1741334691308,15.29731828,143.87,143.86,0.04481646]
[1741334692212,15.29731828,143.87,143.86,6.99511646]
[1741334694113,0.04646108,143.88,143.86,6.99511646]
[1741334694320,15.32023821,143.87,143.86,6.99511646]
[1741334695621,12.25473821,143.87,143.86,6.99511646]
[1741334696211,0.04646108,143.88,143.86,6.99511646]
[1741334696419,5.88435551,143.87,143.86,6.99511646]